[Event "Fall GM-B Norm Invitational 2022"]
[Site "Charlotte"]
[Date "2022.11.21"]
[Round "8"]
[White "Woodward, Andy"]
[Black "Williams, Justus"]
[Result "1/2-1/2"]
[ECO "A54"]
[WhiteElo "2447"]
[BlackElo "2395"]
[Annotator "TA"]
[PlyCount "109"]
[EventDate "2022.11.18"]
[EventType "tourn"]
[EventCountry "USA"]
[SourceTitle "playchess.com"]
[Source "ChessBase"]
[SourceQuality "1"]
[TimeControl "5400+30"]

{[%evp 9,109,65,78,16,22,27,50,19,11,8,0,-19,53,25,50,17,27,25,46,45,93,84,87,32,39,30,131,116,122,116,106,82,85,97,112,0,0,0,0,0,0,0,8,8,8,8,14,17,29,27,27,25,21,32,54,10,49,48,194,195,222,222,222,222,222,123,123,123,123,123,123,123,123,123,123,123,123,123,123,123,123,72,123,0,123,123,123,123,123,123,123,123,123,123,123,123,123,123,123,123,138,8]} 1. d4 {[%emt 0:00:02]} Nf6 {[%emt 0:07:55]} 2. c4 {[%emt 0:00:15]} d6 {[%emt 0:00:35]} 3. Nc3 {[%emt 0:03:16]} e5 {[%emt 0:00:28][%cal Be7e5,Be5e4][%mdl 32]} 4. Nf3 {[%emt 0:03:39]} e4 {[%emt 0:05:39]} 5. Ng5 {[%emt 0:08:07][%cal Bf3g5,Bg5h3,Bh3f2][%mdl 32]} Qe7 {[%emt 0:01:31]} 6. e3 {[%emt 0:04:29] White is more active. A54: Old Indian Defence with Nf3, but without e4.} (6. f3 $16) 6... h6 $11 {[%emt 0:01:50]} 7. Nh3 {[%emt 0:00:37]} g5 {[%emt 0:01:45]} 8. f3 {[%emt 0:02:27] White is slightly better.} exf3 {[%emt 0:06:50]} 9. gxf3 {[%emt 0:00:28]} c5 {[%emt 0:02:13] [#]} 10. Bg2 $146 {[%emt 0:10:19]} ({Predecessor:} 10. d5 Nbd7 11. Nf2 Ne5 12. Be2 Bf5 13. h4 Rg8 14. hxg5 hxg5 15. Rg1 O-O-O 16. e4 {0-1 (34) Ratsma,M (2123)-Radlovacki,J (2443) Novi Sad 2014}) 10... Nc6 {[%emt 0:03:47]} (10... cxd4 $11 11. Qxd4 Nc6) 11. O-O $1 $14 {[%emt 0:06:16]} Bg7 {[%emt 0:02:07]} 12. Nf2 {[%emt 0:10:30]} (12. Nd5 $5 {[%cal Rd5e7]} Qd8 13. dxc5 $14) 12... O-O {[%emt 0:03:50]} 13. Nd5 {[%emt 0:11:18]} Qd8 {[%emt 0:01:06]} 14. f4 $1 {[%emt 0:07:30]} Na5 {[%emt 0:13:17]} (14... gxf4 $14 {might be stronger.} 15. dxc5 (15. Nxf4 cxd4 16. exd4 Re8 $14) 15... dxc5) 15. fxg5 {[%emt 0:03:02]} hxg5 {[%emt 0:00:43]} (15... Nxd5 $2 16. gxh6 (16. cxd5 Qxg5 17. dxc5 dxc5 $14) 16... Bxh6 17. cxd5 $18 (17. Ng4 Bg7 $16)) 16. Nxf6+ {[%emt 0:02:03]} (16. Qe2 $16) 16... Qxf6 {[%emt 0:01:18]} 17. Qh5 {[%emt 0:01:57] Threatens to win with Ne4.} Qg6 {[%emt 0:13:35]} (17... Nxc4 $11 {remains equal.} 18. b3 Nb6) 18. Qxg6 $16 {[%emt 0:01:04]} fxg6 {[%emt 0:00:03]} 19. Bd2 {[%emt 0:00:14]} Nc6 {[%emt 0:00:07]} 20. Ne4 {[%emt 0:01:18]} cxd4 {[%emt 0:02:36]} 21. Rxf8+ {[%emt 0:00:53]} Kxf8 {[%emt 0:01:53]} 22. exd4 {[%emt 0:03:01]} ({Reject} 22. Nxg5 $6 dxe3 23. Bxe3 Bf5 $11) (22. Nxd6 $16 {Black must now prevent Rf1+.} Ke7 23. c5) 22... Bxd4+ $11 {[%emt 0:01:08]} 23. Kh1 {[%emt 0:00:28] aiming for Rf1+.} Be5 {[%emt 0:02:07]} 24. Bxg5 {[%emt 0:02:02]} Kg7 {[%emt 0:02:18] Inhibits Bh6+.} 25. c5 {[%emt 0:01:48]} d5 {[%emt 0:01:20]} 26. Nd6 {[%emt 0:01:23]} Be6 {[%emt 0:00:19]} 27. Re1 {[%emt 0:00:13]} Rh8 {[%emt 0:03:48]} 28. h4 {[%emt 0:00:40]} Bf6 {[%emt 0:02:39]} (28... b6 {with more complications.} 29. b4 Bf6 30. Rxe6 Bxg5 31. Ne8+ Kf8) 29. Rxe6 {[%emt 0:00:39]} Bxg5 {[%emt 0:00:03]} 30. Bxd5 {[%emt 0:00:26]} Rxh4+ {[%emt 0:00:38]} 31. Kg2 {[%emt 0:00:05]} Nd8 {[%emt 0:04:59]} 32. Re2 {[%emt 0:02:12]} Bf4 {[%emt 0:02:52]} 33. Nxb7 {[%emt 0:02:12]} Rh2+ {[%emt 0:02:01]} (33... Nxb7 $14 34. Re7+ (34. Bxb7 Kf6 $16) 34... Kf6 35. Rf7+ (35. Rxb7 Ke5 $14) 35... Ke5 36. Bxb7 Ke6) 34. Kf3 $18 {[%emt 0:00:39]} Rxe2 {[%emt 0:00:09]} 35. Kxe2 {[%emt 0:02:22]} ({Don't do} 35. Nxd8 $6 Bg5 $16) 35... Nxb7 {[%emt 0:00:10]} 36. Bxb7 {[%emt 0:00:05][%mdl 4096] Endgame KB-KB} Kf6 {[%emt 0:03:43] [#]} 37. Kd3 {[%emt 0:00:27]} (37. b4 $1 $18) 37... Ke6 {[%emt 0:00:40]} 38. Kc4 {[%emt 0:00:34]} Kd7 {[%emt 0:00:07]} 39. Kb5 {[%emt 0:01:19]} Kc7 {[%emt 0:00:22]} 40. Be4 {[%emt 0:00:15]} Be5 {[%emt 0:01:35]} 41. b4 {[%emt 0:01:33]} g5 {[%emt 0:01:01]} 42. Bf3 {[%emt 0:00:55]} Bc3 {[%emt 0:00:29]} 43. a4 {[%emt 0:02:36][%cal Ba2a4,Ba4a5,Ba5a6][%mdl 32]} Be1 {[%emt 0:00:49]} 44. a5 {[%emt 0:00:50]} Bd2 {[%emt 0:01:10]} 45. Ka4 {[%emt 0:01:09]} (45. a6 $142) 45... Be3 {[%emt 0:00:22]} ({Black should play} 45... a6) 46. Kb5 {[%emt 0:00:48]} Bd2 $1 {[%emt 0:00:10]} 47. a6 {[%emt 0:02:38]} Be1 {[%emt 0:01:00]} 48. Kc4 {[%emt 0:00:11]} Bd2 {[%emt 0:01:08]} 49. b5 {[%emt 0:00:17][%cal Ob5b6] Strongly threatening b6+!} Be3 {[%emt 0:01:57]} 50. Kd5 {[%emt 0:01:48]} Bf2 {[%emt 0:00:26]} 51. b6+ {[%emt 0:01:09]} Kb8 {[%emt 0:00:18]} 52. Kc6 {[%emt 0:00:24]} Be3 {[%emt 0:00:15]} 53. Be2 {[%emt 0:01:07]} Bf2 {[%emt 0:00:15]} 54. Kb5 {[%emt 0:00:51]} Be3 {[%emt 0:00:06]} 55. bxa7+ {[%emt 0:00:35] Black defended with fortune.  Weighted Error Value: White=0.15 (very precise) /Black=0.17 (very precise)} (55. Bd1 $16) 1/2-1/2

[Event "Fall GM-B Norm Invitational 2022"]
[Site "Charlotte"]
[Date "2022.11.21"]
[Round "8"]
[White "Ozenir, Ekin Baris"]
[Black "Hilby, Craig"]
[Result "1/2-1/2"]
[ECO "B07"]
[WhiteElo "2352"]
[BlackElo "2411"]
[Annotator "TA"]
[PlyCount "67"]
[EventDate "2022.11.18"]
[EventType "tourn"]
[EventCountry "USA"]
[SourceTitle "playchess.com"]
[Source "ChessBase"]
[SourceQuality "1"]
[TimeControl "5400+30"]

{[%evp 11,67,37,47,27,29,27,22,26,34,0,0,0,0,-4,33,16,13,11,10,9,10,13,16,7,66,-11,0,-14,0,-41,-38,-42,-20,-49,-42,-43,-42,-41,-41,-60,0,0,0,0,0,0,0,0,0,0,0,0,0,0,0,0,0,0]} 1. Nf3 {[%emt 0:00:12]} g6 {[%emt 0:00:19]} 2. e4 {[%emt 0:00:30]} Bg7 {[%emt 0:00:07]} 3. d4 {[%emt 0:00:05]} d6 {[%emt 0:00:32]} 4. c3 {[%emt 0:00:11]} Nf6 {[%emt 0:00:55]} 5. Bd3 {[%emt 0:00:06]} O-O {[%emt 0:00:11]} 6. O-O {[%emt 0:00:08]} Nbd7 {[%emt 0:00:43]} 7. Be3 {[%emt 0:00:19] B07: Pirc Defence: Miscellaneous Systems.} e5 {[%emt 0:00:40]} 8. Nbd2 {[%emt 0:00:27]} b6 {[%emt 0:09:53]} 9. a4 {[%emt 0:03:13]} a5 {[%emt 0:00:47] [#]} 10. dxe5 $146 {[%emt 0:02:55]} ({Predecessor:} 10. Re1 Bb7 11. Qc2 Re8 12. Rad1 h6 13. h3 Nh5 14. Bb5 c6 15. Bf1 Qc7 16. dxe5 dxe5 {½-½ (52) Sanal,V (2543)-Olcum,A (2257) Batumi 2018}) 10... Nxe5 {[%emt 0:04:47]} 11. Nxe5 {[%emt 0:03:14]} dxe5 {[%emt 0:00:13]} 12. Be2 {[%emt 0:00:25]} Bb7 {[%emt 0:02:53]} 13. Qb1 {[%emt 0:01:54]} h5 {[%emt 0:09:23]} 14. h3 {[%emt 0:03:37] Prevents Ng4.} Kh7 {[%emt 0:00:34]} 15. Rd1 {[%emt 0:05:43]} Bh6 {[%emt 0:08:03]} 16. Bxh6 {[%emt 0:02:50]} Kxh6 {[%emt 0:00:04]} 17. b4 {[%emt 0:00:14] next bxa5 is good for White.} Qe7 {[%emt 0:04:32]} (17... Bc6 $11) 18. f3 {[%emt 0:06:45]} (18. bxa5 $14 Rxa5 19. Qb4) 18... Rfd8 {[%emt 0:03:20]} 19. Qb2 {[%emt 0:06:12]} h4 {[%emt 0:04:58]} 20. Bf1 {[%emt 0:07:31]} Nh5 {[%emt 0:02:08]} 21. Nc4 {[%emt 0:01:10]} Ba6 {[%emt 0:06:22]} 22. b5 {[%emt 0:14:03]} Bb7 {[%emt 0:01:15]} 23. Ne3 {[%emt 0:00:37]} Kg7 {[%emt 0:09:29]} 24. c4 {[%emt 0:02:43]} Rxd1 {[%emt 0:06:42]} 25. Rxd1 {[%emt 0:00:33]} Nf4 {[%emt 0:00:09]} ({Black should play} 25... Qc5 $1 $15 26. Qf2 Qe7) 26. Nd5 $11 {[%emt 0:06:58] The position is equal.} Bxd5 {[%emt 0:01:06]} 27. cxd5 {[%emt 0:00:05]} Rd8 {[%emt 0:07:22]} 28. Rc1 {[%emt 0:00:24]} Nh5 {[%emt 0:00:55]} 29. Rc6 {[%emt 0:02:12]} Nf6 {[%emt 0:01:29]} 30. Bd3 {[%emt 0:08:08]} Rd6 {[%emt 0:01:53]} 31. Rc2 {[%emt 0:00:09][%cal Of3f4]} Ne8 {[%emt 0:01:27]} 32. f4 {[%emt 0:05:45]} f6 {[%emt 0:00:06]} 33. Rf2 {[%emt 0:00:05]} Rd8 {[%emt 0:01:30]} 34. f5 {[%emt 0:02:00] Weighted Error Value: White=0.11 (very precise) /Black=0.10 (very precise)} 1/2-1/2

[Event "Fall GM-B Norm Invitational 2022"]
[Site "Charlotte"]
[Date "2022.11.22"]
[Round "9"]
[White "Beradze, Irakli"]
[Black "Paragua, Mark"]
[Result "0-1"]
[ECO "D45"]
[WhiteElo "2494"]
[BlackElo "2466"]
[Annotator "TA"]
[PlyCount "88"]
[EventDate "2022.11.18"]
[EventType "tourn"]
[EventCountry "USA"]
[SourceTitle "playchess.com"]
[Source "ChessBase"]
[SourceQuality "1"]
[TimeControl "5400+30"]

{[%evp 20,88,0,0,-12,-27,-17,-29,-41,-39,-20,-20,-10,-9,0,0,0,-4,-4,-10,0,0,0,0,0,-9,0,0,0,0,0,0,-6,-22,-29,-34,0,-796,-756,-803,-801,-777,-774,-730,-684,-673,-540,-531,-524,-580,-580,-526,-522,-652,-620,-721,-721,-826,-826,-809,-814,-976,-975,-1000,-925,-29968,-29968,-29986,-29987,-29991,-29992]} 1. c4 {[%emt 0:02:40]} c6 {[%emt 0:00:21]} 2. Nf3 {[%emt 0:00:22]} d5 {[%emt 0:00:09]} 3. e3 {[%emt 0:00:02]} Nf6 {[%emt 0:00:07]} 4. Nc3 {[%emt 0:00:30]} e6 {[%emt 0:00:53]} 5. d4 {[%emt 0:01:03]} Nbd7 {[%emt 0:00:41]} 6. Qc2 {[%emt 0:00:05]} Bd6 {[%emt 0:00:14]} 7. Bd3 {[%emt 0:00:23]} O-O {[%emt 0:00:51]} 8. O-O {[%emt 0:00:05]} dxc4 {[%emt 0:02:14]} 9. Bxc4 {[%emt 0:00:24]} b5 {[%emt 0:00:29]} 10. Bd3 {[%emt 0:00:04]} Bb7 {[%emt 0:00:34]} 11. h3 {[%emt 0:12:38]} b4 {[%emt 0:02:54] D46: Semi-Slav: 5 e3 Nbd7 6 Bd3, Black avoids the Meran.} 12. Na4 {[%emt 0:23:24]} c5 {[%emt 0:03:16]} 13. dxc5 {[%emt 0:01:06]} Rc8 {[%emt 0:00:33] Black has an edge.} 14. Qe2 {[%emt 0:01:29]} Nxc5 {[%emt 0:00:09]} 15. Nxc5 {[%emt 0:00:02]} Bxc5 {[%emt 0:01:43] [#]} 16. Rd1 $146 {[%emt 0:05:39][%cal Od3h7] Strongly threatening Bxh7+!} ({Predecessor:} 16. e4 Qc7 17. Bg5 Nh5 18. Qd2 f5 19. Rfe1 fxe4 20. Bxe4 Bxe4 21. Rxe4 Rxf3 22. gxf3 Qg3+ 23. Kf1 Qxf3 24. Rg4 Qxh3+ 25. Rg2 Qh1+ 26. Rg1 Ng3+ {0-1 (26) Douven,R (2408)-Kroeze,F (2374) Netherlands 2001}) 16... Qc7 {[%emt 0:07:50]} 17. Bd2 {[%emt 0:03:13]} Rfd8 {[%emt 0:03:56]} 18. Be1 {[%emt 0:00:44]} Be7 {[%emt 0:06:33]} 19. Ba6 {[%emt 0:03:59]} h6 {[%emt 0:05:04]} 20. Rxd8+ {[%emt 0:01:08]} Rxd8 {[%emt 0:00:15]} 21. Bxb7 {[%emt 0:00:38]} Qxb7 {[%emt 0:00:06]} 22. Rc1 {[%emt 0:00:09]} Rc8 {[%emt 0:02:51]} 23. Rc2 {[%emt 0:02:59]} Nd5 {[%emt 0:04:59][%cal Bf6d5,Bd5c3,Bc3e2,Be2c1][%mdl 32]} 24. Ne5 {[%emt 0:01:59]} Rc7 {[%emt 0:16:15]} 25. Qd3 {[%emt 0:11:05]} Bf6 {[%emt 0:03:41]} 26. Nc4 {[%emt 0:05:45]} Qb5 {[%emt 0:03:12][%cal Od5c3]} 27. Qb3 {[%emt 0:08:52] Prevents Nc3.} Nc3 $40 {[%emt 0:09:16][%mdl 128] Black has some attack.} 28. Nd2 {[%emt 0:02:06][%mdl 8192] [#] White is now going downhill.} (28. Nd6 $11 Qd3 29. bxc3) 28... Ne2+ $1 $19 {[%emt 0:00:54]} 29. Kh1 {[%emt 0:00:51]} Nc1 {[%emt 0:00:10]} 30. Rxc7 {[%emt 0:01:06]} Nxb3 {[%emt 0:00:08]} 31. axb3 {[%emt 0:00:01]} Qe2 {[%emt 0:00:34]} 32. Nf3 {[%emt 0:00:27]} Qxb2 {[%emt 0:00:30]} 33. Bxb4 {[%emt 0:00:44]} Qxf2 {[%emt 0:01:33]} 34. Bd2 {[%emt 0:00:03]} Qf1+ {[%emt 0:00:19]} 35. Kh2 {[%emt 0:00:01]} Qb5 {[%emt 0:00:18]} 36. Rc8+ {[%emt 0:00:02]} Kh7 {[%emt 0:00:04]} 37. b4 {[%emt 0:00:03]} Be7 {[%emt 0:00:26]} 38. Nd4 {[%emt 0:01:24]} Qd3 {[%emt 0:03:59]} 39. Nf3 {[%emt 0:00:26]} e5 {[%emt 0:00:35][%cal Be6e5,Be5e4][%mdl 32] [#] White must now prevent ...e4.} 40. e4 {[%emt 0:01:24]} Qxe4 {[%emt 0:00:21]} 41. Rc7 {[%emt 0:00:02]} Bd6 {[%emt 0:01:25]} 42. Rxf7 {[%emt 0:00:26]} Qd5 {[%emt 0:00:51] Black mates.} 43. Rd7 {[%emt 0:00:20]} e4+ {[%emt 0:00:07]} 44. Bf4 {[%emt 0:00:02]} Bxf4+ {[%emt 0:00:06] Weighted Error Value: White=0.57/Black=0.10 (very precise)} 0-1

[Event "Fall GM-B Norm Invitational 2022"]
[Site "Charlotte"]
[Date "2022.11.22"]
[Round "9"]
[White "Korley, Kassa"]
[Black "Ozenir, Ekin Baris"]
[Result "1-0"]
[ECO "A05"]
[WhiteElo "2451"]
[BlackElo "2352"]
[Annotator "TA"]
[PlyCount "67"]
[EventDate "2022.11.18"]
[EventType "tourn"]
[EventCountry "USA"]
[SourceTitle "playchess.com"]
[Source "ChessBase"]
[SourceQuality "1"]
[TimeControl "5400+30"]

{[%evp 11,67,18,20,12,13,16,33,33,49,41,43,37,28,9,40,40,45,33,41,43,45,0,9,6,44,28,42,-23,-14,-19,-17,-7,14,8,11,10,289,271,355,361,360,141,0,0,361,391,383,379,352,334,5421,5377,1628,975,29990,29991,29991,29989]} 1. Nf3 {[%emt 0:00:23]} Nf6 {[%emt 0:00:13]} 2. g3 {[%emt 0:00:02]} b6 {[%emt 0:00:08]} 3. Bg2 {[%emt 0:00:04]} Bb7 {[%emt 0:00:03]} 4. O-O {[%emt 0:00:04]} g6 {[%emt 0:00:11]} 5. d3 {[%emt 0:02:23][%cal Bd2d3,Bd3d4,Bd4d5][%mdl 32]} Bg7 {[%emt 0:01:41]} 6. e4 {[%emt 0:00:20]} d6 {[%emt 0:00:22]} 7. Re1 {[%emt 0:01:31] A05: Réti Opening: 1 Nf3 Nf6.} O-O {[%emt 0:01:37]} 8. Nc3 {[%emt 0:00:40]} c5 {[%emt 0:05:07]} 9. d4 {[%emt 0:00:08] [#] White is slightly better.} Nfd7 $146 {[%emt 0:07:20]} ({Predecessor:} 9... Na6 10. d5 Nc7 11. Bf4 b5 12. a4 b4 13. Nb5 Nxb5 14. axb5 Qb6 15. Bf1 a6 16. bxa6 Bxa6 17. Bxa6 Rxa6 {0-1 (42) Nieto Tornero,J (1913)-Aranda Marin,C (2295) Quart de Poblet 2014}) 10. d5 {[%emt 0:01:02]} Na6 {[%emt 0:08:44]} 11. h4 {[%emt 0:00:06][%cal Bh2h4,Bh4h5][%mdl 32]} Nc7 {[%emt 0:02:32]} 12. h5 {[%emt 0:00:18]} Ne5 {[%emt 0:01:06]} 13. Nxe5 {[%emt 0:03:56]} Bxe5 {[%emt 0:00:24]} 14. Bh6 {[%emt 0:00:09]} Re8 {[%emt 0:00:43]} 15. Qd2 {[%emt 0:02:32]} e6 {[%emt 0:23:07]} 16. Bg5 {[%emt 0:03:59]} Qd7 {[%emt 0:01:31]} 17. Rad1 {[%emt 0:04:27]} b5 {[%emt 0:07:31][%cal Bb6b5,Bb5b4][%mdl 32]} (17... exd5 $5 {[%cal Rd5d4]} 18. hxg6 (18. exd5 f6 $11) 18... hxg6 $11) 18. Bh3 {[%emt 0:07:08]} b4 {[%emt 0:04:41]} 19. Ne2 {[%emt 0:00:03]} (19. dxe6 $14 Nxe6 20. Nd5 Nxg5 21. Bxd7 (21. Nf6+ $2 Bxf6 22. Bxd7 Nf3+ 23. Kg2 Nxd2 $19) 21... Nf3+ 22. Kg2 Nxd2 23. Bxe8 (23. Rxd2 Reb8 $11) 23... Rxe8 24. Rxd2) 19... Qb5 {[%emt 0:02:36]} (19... gxh5 20. Nf4 f5 21. Nxe6 $14 (21. dxe6 Qg7 $11)) (19... Bxb2 20. c3 bxc3 21. Nxc3 Bxc3 22. Qxc3 $14) 20. Bg2 {[%emt 0:22:00]} exd5 {[%emt 0:01:55]} ({But not} 20... gxh5 21. Nf4 f6 22. Bh4 $16) (20... Bxb2 21. c4 bxc3 22. Nxc3 Bxc3 23. Qxc3 exd5 24. Rb1 $16) 21. exd5 {[%emt 0:00:02]} Bxb2 {[%emt 0:02:46] [#] ...Qc4 is the strong threat.} 22. c4 {[%emt 0:00:12]} bxc3 $1 {[%emt 0:01:48]} 23. Nxc3 {[%emt 0:00:05]} Qb4 {[%emt 0:00:04][%mdl 8192]} (23... Rxe1+ $11 {and Black is okay.} 24. Rxe1 Bxc3 25. Qxc3 Re8) 24. Bf6 $18 {[%emt 0:00:28][%cal Od2h6] White wants to mate with Qh6!} Bxc3 {[%emt 0:06:40]} 25. Bxc3 {[%emt 0:00:38]} Qc4 {[%emt 0:00:57]} 26. Bf6 $2 {[%emt 0:15:45]} (26. hxg6 $18 {[%cal Od2h6] has better winning chances. Intending Qh6! and mate.} fxg6 27. Ba5) 26... Qb4 $16 {[%emt 0:03:09] [#] Strongly threatening ...Qxd2.} ({Worse is} 26... Rxe1+ 27. Rxe1 Nxd5 28. Bg5 $14) 27. Bc3 $40 {[%emt 0:04:30][%mdl 128] White has some attack. This bishop pair is nice.} Qg4 {[%emt 0:06:08][%mdl 8192]} (27... Qc4 $11) 28. Qh6 $18 {[%emt 0:01:46][%csl Gc3][%cal Rh6g7]} f6 {[%emt 0:00:14]} 29. Bxf6 {[%emt 0:01:38][%csl Gf6][%cal Rh6g7]} gxh5 {[%emt 0:00:59]} 30. Be4 {[%emt 0:04:23] Inhibits Qg6. The board is on fire.} Qd7 {[%emt 0:05:51]} (30... Rxe4 31. Rxe4 Qg6 32. Qxg6+ hxg6) 31. Qg5+ {[%emt 0:00:58]} Kf8 {[%emt 0:00:09]} 32. Re3 {[%emt 0:01:06][%cal Oe3f3] Rf3! would kill now.} Qg4 {[%emt 0:02:50]} 33. Qh6+ {[%emt 0:00:04]} Kf7 {[%emt 0:00:03]} 34. Bf3 {[%emt 0:00:27] Weighted Error Value: White=0.21 (precise) /Black=0.64} 1-0

[Event "Fall GM-B Norm Invitational 2022"]
[Site "Charlotte"]
[Date "2022.11.22"]
[Round "9"]
[White "Hilby, Craig"]
[Black "Kantor, Gergely"]
[Result "1/2-1/2"]
[ECO "C26"]
[WhiteElo "2411"]
[BlackElo "2561"]
[Annotator "TA"]
[PlyCount "34"]
[EventDate "2022.11.18"]
[EventType "tourn"]
[EventCountry "USA"]
[SourceTitle "playchess.com"]
[Source "ChessBase"]
[SourceQuality "1"]
[TimeControl "5400+30"]

{[%evp 10,34,0,-2,6,0,8,0,0,0,14,18,19,23,18,0,0,-20,18,-3,0,0,0,0,76,58,64]} 1. e4 {[%emt 0:04:39]} e5 {[%emt 0:00:11]} 2. Nc3 {[%emt 0:00:42]} Nf6 {[%emt 0:00:25]} 3. g3 {[%emt 0:00:13]} Bc5 {[%emt 0:02:00]} 4. Bg2 {[%emt 0:00:13]} Nc6 {[%emt 0:00:51]} 5. Nge2 {[%emt 0:01:17]} O-O {[%emt 0:25:42]} 6. O-O {[%emt 0:00:21]} Re8 {[%emt 0:02:03] C26: Vienna Game: 2...Nf6, sidelines .} 7. d3 {[%emt 0:01:13]} Nd4 {[%emt 0:01:26]} 8. Na4 {[%emt 0:14:14]} Bf8 {[%emt 0:06:31] The position is equal.} 9. c4 {[%emt 0:08:48] [#] Prevents d5.} d6 $146 {[%emt 0:08:35]} ({Predecessor:} 9... c6 10. Nac3 Bc5 11. h3 a6 12. g4 d6 13. Nxd4 Bxd4 14. Ne2 Bc5 15. Ng3 b5 {½-½ (68) Lu,S (2551)-Zhou,W (2590) Danzhou 2013}) 10. Nac3 {[%emt 0:00:35]} Nxe2+ {[%emt 0:01:36]} 11. Qxe2 {[%emt 0:00:30]} c6 {[%emt 0:00:03]} 12. f4 {[%emt 0:04:00]} b5 {[%emt 0:00:36]} 13. b3 {[%emt 0:05:34]} Ba6 {[%emt 0:08:53]} 14. f5 {[%emt 0:03:39]} bxc4 {[%emt 0:03:35]} 15. bxc4 {[%emt 0:00:31]} d5 {[%emt 0:01:34]} 16. exd5 {[%emt 0:02:40]} Bc5+ {[%emt 0:00:12]} (16... e4 $1 $11 {keeps the balance.} 17. Bg5 (17. dxe4 cxd5 18. Rd1 Bxc4 $19) 17... Bc5+ 18. Kh1 Bd4 19. Bxf6 Bxf6) 17. Be3 $16 {[%emt 0:03:27]} Bd4 {[%emt 0:02:11] Weighted Error Value: White=0.08 (flawless) /Black=0.15 (very precise)} 1/2-1/2

[Event "Fall GM-B Norm Invitational 2022"]
[Site "Charlotte"]
[Date "2022.11.22"]
[Round "9"]
[White "Williams, Justus"]
[Black "Cruz, Cristhian"]
[Result "1-0"]
[ECO "A05"]
[WhiteElo "2395"]
[BlackElo "2552"]
[Annotator "TA"]
[PlyCount "45"]
[EventDate "2022.11.18"]
[EventType "tourn"]
[EventCountry "USA"]
[SourceTitle "playchess.com"]
[Source "ChessBase"]
[SourceQuality "1"]
[TimeControl "5400+30"]

{[%evp 17,45,0,1,0,0,-27,0,10,5,5,12,12,6,-10,27,37,59,58,92,98,150,127,141,129,147,143,153,131,241,267]} 1. Nf3 {[%emt 0:00:05]} d5 {[%emt 0:00:27]} 2. g3 {[%emt 0:00:18]} Nf6 {[%emt 0:00:59]} 3. Bg2 {[%emt 0:00:20]} e6 {[%emt 0:00:12]} 4. O-O {[%emt 0:01:14]} Be7 {[%emt 0:00:42]} 5. d3 {[%emt 0:00:24]} c5 {[%emt 0:00:16]} 6. Nbd2 {[%emt 0:00:28]} Nc6 {[%emt 0:00:09]} 7. e4 {[%emt 0:00:36]} Qc7 {[%emt 0:00:20]} 8. Re1 {[%emt 0:00:36]} b6 {[%emt 0:00:26]} 9. c3 {[%emt 0:02:41]} Ba6 {[%emt 0:07:27]} 10. Nf1 {[%emt 0:07:27] C00: French: Unusual White 2nd moves.} dxe4 {[%emt 0:04:19]} 11. dxe4 {[%emt 0:01:28]} (11. Bf4 $5 {[%cal Rf4c7]} Qb7 12. dxe4 $11) 11... O-O {[%emt 0:00:53]} (11... Rd8 $5 {[%cal Rd8d1]} 12. Qa4 Bd3 $11) 12. Bf4 {[%emt 0:04:17] The position is equal.} e5 {[%emt 0:04:23]} 13. Bg5 {[%emt 0:01:05]} Rfd8 {[%emt 0:07:14]} 14. Qc1 {[%emt 0:03:40] [#]} Bd3 $146 {[%emt 0:09:49]} ({Predecessor:} 14... Nd7 15. Bxe7 Nxe7 16. Ne3 c4 17. Nf5 Nc5 18. Qg5 Nxf5 19. exf5 f6 20. Qg4 Rac8 {0-1 (44) Tuncer,D (1520)-Gur,T (1747) Konya 2019}) 15. Nh4 {[%emt 0:14:06]} g6 {[%emt 0:02:50]} 16. Ne3 {[%emt 0:05:17]} Nxe4 {[%emt 0:11:59]} 17. Bxe7 {[%emt 0:00:31]} Qxe7 {[%emt 0:00:33] [#]} 18. Rd1 $1 {[%emt 0:02:41][%cal Od1d3]} f5 {[%emt 0:11:53] [#]} (18... Nxf2 $142 19. Bxc6 Rac8 20. Kxf2 (20. Nd5 Rxd5 21. Bxd5 Nxd1 $14) 20... Rxc6) 19. Rxd3 $1 {[%emt 0:00:46][%mdl 512]} Rxd3 {[%emt 0:00:11] [#]} 20. Nexf5 $1 {[%emt 0:00:35][%mdl 512]} gxf5 {[%emt 0:00:14]} 21. Nxf5 {[%emt 0:00:02] White is clearly better.} Qf6 {[%emt 0:00:08]} 22. Bxe4 {[%emt 0:00:07]} Rd7 {[%emt 0:00:05] [#]} (22... Rad8 $16 {was necessary.}) 23. Nh6+ $1 {[%emt 0:00:20] Weighted Error Value: White=0.03 (flawless) /Black=0.29 (precise)} ({Not} 23. Qh6 Rf8 $11) 1-0